Workbook

Sheet Sheet1
A1: Example 4-5. Bedient P 257
A3: Dt | B3: =A22-A21 -> 2 | C3: min
B4: =B3*60 -> 120 | C4: sec
A5: h | B5: S | C5: 2*S/Dt+Q | D5: Q
A6: (ft) | B6: (ft^3) | C6: cfs | D6: cfs
A7: 0 | B7: 0 | C7: =2*B7/$B$4+D7 -> 0 | D7: 0
A8: 1 | B8: 6772 | C8: 125.8666667 | D8: 13
A9: 2 | B9: 15161 | C9: 270.6833333 | D9: 18
A10: 3 | B10: 25310 | C10: 443.8333333 | D10: 22
A11: 4 | B11: 37361 | C11: 648.6833333 | D11: 26
A12: 5 | B12: 51457 | C12: 886.6166667 | D12: 29
A13: 5.5 | B13: 59173 | C13: 1036.216667 | D13: 50
A14: 6 | B14: 67167 | C14: 1206.45 | D14: 87
A15: 6.5 | B15: 75443 | C15: 1393.383333 | D15: 136
A16: 7 | B16: 84006 | C16: 1593.1 | D16: 193
A18: Row considered at time n+1
A19: Time | B19: Inflow | C19: I(n)+I(n+1) | D19: 2S/Dt-Q | E19: 2S/Dt+Q | F19: Q | G19: S
A20: min | B20: cfs | C20: cfs
A21: 0 | B21: 0 | C21: 0 | D21: 0 | E21: 0 | F21: 0 | G21: 0
A22: 2 | B22: 4 | C22: =B21+B22 -> 4 | D22: =2*G21/$B$4-F21 -> 0 | E22: =D22+C22 -> 4 | F22: =Linterp($C$7:$D$16,E22) -> 0.4131355932 | G22: =(E22-F22)*$B$4/2 -> 215.2118644
A23: 4 | B23: 8 | C23: =B22+B23 -> 12 | D23: =2*G22/$B$4-F22 -> 3.173728814 | E23: =D23+C23 -> 15.17372881 | F23: =Linterp($C$7:$D$16,E23) -> 1.567201864 | G23: =(E23-F23)*$B$4/2 -> 816.391617 | J23: Runga-Kutta
A24: 6 | B24: 12 | C24: 20 | D24: 12.03932509 | E24: 32.03932509 | F24: 3.309146394 | G24: 1723.810722 | J24: h | K24: A | L24: h | M24: Q | O24: S
A25: 8 | B25: 16 | C25: 28 | D25: 25.4210323 | E25: 53.4210323 | F25: 5.517532467 | G25: 2874.20999 | J25: (ft) | K25: ft^2 | L25: (ft) | M25: cfs | O25: (ft^3)
A26: 10 | B26: 20 | C26: 36 | D26: 42.38596736 | E26: 78.38596736 | F26: 8.096008282 | G26: 4217.397545 | J26: 0 | K26: 6000 | L26: 0 | M26: 0 | O26: 0
A27: 12 | B27: 24 | C27: 44 | D27: 62.1939508 | E27: 106.1939508 | F27: 10.96812522 | G27: 5713.549535 | J27: 1 | K27: 7545 | L27: 1 | M27: 13 | O27: 6772
A28: 14 | B28: 28 | C28: 52 | D28: 84.25770037 | E28: 136.2577004 | F28: 13.35876512 | G28: 7373.936115 | J28: 2 | K28: 9233 | L28: 2 | M28: 18 | O28: 15161
A29: 16 | B29: 32 | C29: 60 | D29: 109.5401701 | E29: 169.5401701 | F29: 14.50788941 | G29: 9301.936844 | J29: 3 | K29: 11064 | L29: 3 | M29: 22 | O29: 25310
A30: 18 | B30: 36 | C30: 68 | D30: 140.5243913 | E30: 208.5243913 | F30: 15.85387471 | G30: 11560.231 | J30: 4 | K30: 13038 | L30: 4 | M30: 26 | O30: 37361
A31: 20 | B31: 40 | C31: 76 | D31: 176.8166419 | E31: 252.8166419 | F31: 17.38312724 | G31: 14126.01088 | J31: 5 | K31: 15155 | L31: 5 | M31: 29 | O31: 51457
A32: 22 | B32: 44 | C32: 84 | D32: 218.0503874 | E32: 302.0503874 | F32: 18.72462152 | G32: 16999.54595 | J32: 5.5 | K32: 15707 | L32: 5.5 | M32: 50 | O32: 59173
A33: 24 | B33: 48 | C33: 92 | D33: 264.6011444 | E33: 356.6011444 | F33: 19.98481804 | G33: 20196.97958 | J33: 6 | K33: 16268 | L33: 6 | M33: 87 | O33: 67167
A34: 26 | B34: 52 | C34: 100 | D34: 316.6315083 | E34: 416.6315083 | F34: 21.37160092 | G34: 23715.59444 | J34: 6.5 | K34: 16873 | L34: 6.5 | M34: 136 | O34: 75443
A35: 28 | B35: 56 | C35: 108 | D35: 373.8883064 | E35: 481.8883064 | F35: 22.74307978 | G35: 27548.7136 | J35: 7 | K35: 17416 | L35: 7 | M35: 193 | O35: 84006
A36: 30 | B36: 60 | C36: 116 | D36: 436.4021469 | E36: 552.4021469 | F36: 24.11996707 | G36: 31696.93079
A37: 32 | B37: 58 | C37: 118 | D37: 504.1622128 | E37: 622.1622128 | F37: 25.4821358 | G37: 35800.80462 | J37: Row considered at time n+1
A38: 34 | B38: 56 | C38: 114 | D38: 571.1979412 | E38: 685.1979412 | F38: 26.46039713 | G38: 39524.25264 | J38: Time | K38: Inflow | L38: f(H_n,t_n) | M38: DH1 | N38: f(H+DH1) | O38: DH2 | P38: DH | Q38: H | R38: Q | S38: A
A39: 36 | B39: 54 | C39: 110 | D39: 632.2771469 | E39: 742.2771469 | F39: 27.18008451 | G39: 42905.82374 | J39: min | K39: cfs | Q39: ft | R39: cfs | S39: ft^2
A40: 38 | B40: 52 | C40: 106 | D40: 687.9169779 | E40: 793.9169779 | F40: 27.83118913 | G40: 45965.14733 | J40: 0 | K40: 0 | Q40: 0 | R40: =Linterp($L$26:$M$35,Q40) -> 0 | S40: =Linterp($J$26:$K$35,Q40) -> 6000
A41: 40 | B41: 50 | C41: 102 | D41: 738.2545996 | E41: 840.2545996 | F41: 28.41544045 | G41: 48710.34955 | J41: 2 | K41: 4 | L41: =(K40-R40)/S40 -> 0 | M41: =L41*$B$4 -> 0 | N41: =(K41-Linterp($L$26:$M$35,Q40+M41))/Linterp($J$26:$K$35,Q40+M41) -> 0.0006666666667 | O41: =N41*$B$4 -> 0.08 | P41: =(M41+O41)/2 -> 0.04 | Q41: =Q40+P41 -> 0.04 | R41: =Linterp($L$26:$M$35,Q41) -> 0.52 | S41: =Linterp($J$26:$K$35,Q41) -> 6061.8
A42: 42 | B42: 48 | C42: 98 | D42: 783.4237187 | E42: 881.4237187 | F42: 28.93452433 | G42: 51149.35166 | J42: 4 | K42: 8 | L42: =(K41-R41)/S41 -> 0.0005740869049 | M42: =L42*$B$4 -> 0.06889042859 | N42: =(K42-Linterp($L$26:$M$35,Q41+M42))/Linterp($J$26:$K$35,Q41+M42) -> 0.001067472894 | O42: =N42*$B$4 -> 0.1280967473 | P42: =(M42+O42)/2 -> 0.09849358795 | Q42: =Q41+P42 -> 0.138493588 | R42: =Linterp($L$26:$M$35,Q42) -> 1.800416643 | S42: =Linterp($J$26:$K$35,Q42) -> 6213.972593
A43: 44 | B43: 46 | C43: 94 | D43: 823.5546701 | E43: 917.5546701 | F43: 33.34290154 | G43: 53052.70611 | J43: 6 | K43: 12 | L43: 0.000997684374 | M43: 0.1197221249 | N43: =(K43-Linterp($L$26:$M$35,Q42+M43))/Linterp($J$26:$K$35,Q42+M43) -> 0.001350722355 | O43: 0.1620866826 | P43: 0.1409044038 | Q43: 0.2793979917 | R43: 3.632173892 | S43: 6431.669897
A44: 46 | B44: 44 | C44: 90 | D44: 850.868867 | E44: 940.868867 | F44: 36.61561635 | G44: 54255.19504 | J44: 8 | K44: 16 | L44: 0.001301034761 | M44: 0.1561241713 | N44: =(K44-Linterp($L$26:$M$35,Q43+M44))/Linterp($J$26:$K$35,Q43+M44) -> 0.001549287441 | O44: 0.185914493 | P44: 0.1710193321 | Q44: 0.4504173239 | R44: 5.85542521 | S44: 6695.894765
A45: 48 | B45: 42 | C45: 86 | D45: 867.6376343 | E45: 953.6376343 | F45: 38.40802353 | G45: 54913.77664 | J45: 10 | K45: 20 | L45: 0.00151504394 | M45: 0.1818052729 | N45: =(K45-Linterp($L$26:$M$35,Q44+M45))/Linterp($J$26:$K$35,Q44+M45) -> 0.001688615613 | O45: 0.2026338736 | P45: 0.1922195732 | Q45: 0.6426368971 | R45: 8.354279662 | S45: 6992.874006
A46: 50 | B46: 40 | C46: 82 | D46: 876.8215872 | E46: 958.8215872 | F46: 39.13571746 | G46: 55181.15219 | J46: 12 | K46: 24 | L46: 0.001665369679 | M46: 0.1998443615 | N46: =(K46-Linterp($L$26:$M$35,Q45+M46))/Linterp($J$26:$K$35,Q45+M46) -> 0.001786962268 | O46: 0.2144354722 | P46: 0.2071399168 | Q46: 0.8497768139 | R46: 11.04709858 | S46: 7312.905177
A47: 52 | B47: 38 | C47: 78 | D47: 880.5501523 | E47: 958.5501523 | F47: 39.09761496 | G47: 55167.15224 | J47: 14 | K47: 28 | L47: 0.001771238804 | M47: 0.2125486565 | N47: =(K47-Linterp($L$26:$M$35,Q46+M47))/Linterp($J$26:$K$35,Q46+M47) -> 0.001919997162 | O47: 0.2303996595 | P47: 0.221474158 | Q47: 1.071250972 | R47: 13.35625486 | S47: 7665.27164
A48: 54 | B48: 36 | C48: 74 | D48: 880.3549224 | E48: 954.3549224 | F48: 38.50871237 | G48: 54950.7726 | J48: 16 | K48: 32 | L48: 0.001910401331 | M48: 0.2292481597 | N48: =(K48-Linterp($L$26:$M$35,Q47+M48))/Linterp($J$26:$K$35,Q47+M48) -> 0.00217299768 | O48: 0.2607597216 | P48: 0.2450039406 | Q48: 1.316254912 | R48: 14.58127456 | S48: 8078.838292
A49: 56 | B49: 34 | C49: 70 | D49: 877.3374976 | E49: 947.3374976 | F49: 37.52364606 | G49: 54588.8311 | J49: 18 | K49: 36 | L49: 0.002156092845 | M49: 0.2587311414 | N49: =(K49-Linterp($L$26:$M$35,Q48+M49))/Linterp($J$26:$K$35,Q48+M49) -> 0.002363324412 | O49: 0.2835989295 | P49: 0.2711650354 | Q49: 1.587419948 | R49: 15.93709974 | S49: 8536.564872
A50: 58 | B50: 32 | C50: 66 | D50: 872.2902055 | E50: 938.2902055 | F50: 36.25363848 | G50: 54122.19402 | J50: 20 | K50: 40 | L50: 0.002350231101 | M50: 0.2820277322 | N50: =(K50-Linterp($L$26:$M$35,Q49+M50))/Linterp($J$26:$K$35,Q49+M50) -> 0.002513446954 | O50: 0.3016136345 | P50: 0.2918206833 | Q50: 1.879240631 | R50: 17.39620316 | S50: 9029.158186
A51: 60 | B51: 30 | C51: 62 | D51: 865.7829286 | E51: 927.7829286 | F51: 34.7786865 | G51: 53580.25452 | J51: 22 | K51: 44 | L51: 0.002503422399 | M51: 0.3004106879 | N51: =(K51-Linterp($L$26:$M$35,Q50+M51))/Linterp($J$26:$K$35,Q50+M51) -> 0.002643960387 | O51: 0.3172752465 | P51: 0.3088429672 | Q51: 2.188083598 | R51: 18.75233439 | S51: 9577.381069
A52: 62 | B52: 28 | C52: 58 | D52: 858.2255556 | E52: 916.2255556 | F52: 33.15632799 | G52: 52984.15366 | J52: 24 | K52: 48 | L52: 0.002636176364 | M52: 0.3163411637 | N52: =(K52-Linterp($L$26:$M$35,Q51+M52))/Linterp($J$26:$K$35,Q51+M52) -> 0.002755084985 | O52: 0.3306101982 | P52: 0.323475681 | Q52: 2.511559279 | R52: 20.04623712 | S52: 10169.66504
A53: 64 | B53: 26 | C53: 54 | D53: 849.9128996 | E53: 903.9128996 | F53: 31.42794714 | G53: 52349.09715 | J53: 26 | K53: 52 | L53: 0.002748739784 | M53: 0.329848774 | N53: =(K53-Linterp($L$26:$M$35,Q52+M53))/Linterp($J$26:$K$35,Q52+M53) -> 0.002843461442 | O53: 0.341215373 | P53: 0.3355320735 | Q53: 2.847091353 | R53: 21.38836541 | S53: 10784.02427
A54: 66 | B54: 24 | C54: 50 | D54: 841.0570053 | E54: 891.0570053 | F54: 29.62330957 | G54: 51686.02175 | J54: 28 | K54: 56 | L54: 0.002838609579 | M54: 0.3406331495 | N54: =(K54-Linterp($L$26:$M$35,Q53+M54))/Linterp($J$26:$K$35,Q53+M54) -> 0.002907770674 | O54: 0.3489324809 | P54: 0.3447828152 | Q54: 3.191874168 | R54: 22.76749667 | S54: 11442.75961
A55: 68 | B55: 22 | C55: 46 | D55: 831.8103862 | E55: 877.8103862 | F55: 28.88896536 | G55: 50935.28525 | J55: 30 | K55: 60 | L55: 0.002904238529 | M55: 0.3485086234 | N55: =(K55-Linterp($L$26:$M$35,Q54+M55))/Linterp($J$26:$K$35,Q54+M55) -> 0.002954357346 | O55: 0.3545228815 | P55: 0.3515157525 | Q55: 3.543389921 | R55: 24.17355968 | S55: 12136.6517
A56: 70 | B56: 20 | C56: 42 | D56: 820.0324555 | E56: 862.0324555 | F56: 28.69002816 | G56: 50000.54564 | J56: 32 | K56: 58 | L56: 0.002951921271 | M56: 0.3542305525 | N56: =(K56-Linterp($L$26:$M$35,Q55+M56))/Linterp($J$26:$K$35,Q55+M56) -> 0.00252491146 | O56: 0.3029893751 | P56: 0.3286099638 | Q56: 3.871999884 | R56: 25.48799954 | S56: 12785.32777
A57: 72 | B57: 18 | C57: 38 | D57: 804.6523991 | E57: 842.6523991 | F57: 28.44567329 | G57: 48852.40355 | J57: 34 | K57: 56 | L57: 0.002542914898 | M57: 0.3051497877 | N57: =(K57-Linterp($L$26:$M$35,Q56+M57))/Linterp($J$26:$K$35,Q56+M57) -> 0.002197009929 | O57: 0.2636411915 | P57: 0.2843954896 | Q57: 4.156395374 | R57: 26.46918612 | S57: 13369.08901
A58: 74 | B58: 16 | C58: 34 | D58: 785.7610526 | E58: 819.7610526 | F58: 28.15704605 | G58: 47496.24039 | J58: 36 | K58: 54 | L58: 0.002208887521 | M58: 0.2650665026 | N58: =(K58-Linterp($L$26:$M$35,Q57+M58))/Linterp($J$26:$K$35,Q57+M58) -> 0.001919250807 | O58: 0.2303100969 | P58: 0.2476882997 | Q58: 4.404083674 | R58: 27.21225102 | S58: 13893.44514
A59: 76 | B59: 14 | C59: 30 | D59: 763.4469605 | E59: 793.4469605 | F59: 27.82526288 | G59: 45937.30185 | J59: 38 | K59: 52 | L59: 0.001928085418 | M59: 0.2313702502 | N59: =(K59-Linterp($L$26:$M$35,Q58+M59))/Linterp($J$26:$K$35,Q58+M59) -> 0.001675117115 | O59: 0.2010140538 | P59: 0.216192152 | Q59: 4.620275826 | R59: 27.86082748 | S59: 14351.12392
A60: 78 | B60: 12 | C60: 26 | D60: 737.7964347 | E60: 763.7964347 | F60: 27.45141204 | G60: 44180.70136 | J60: 40 | K60: 50 | L60: 0.00168204056 | M60: 0.2018448672 | N60: =(K60-Linterp($L$26:$M$35,Q59+M60))/Linterp($J$26:$K$35,Q59+M60) -> 0.001457099207 | O60: 0.1748519049 | P60: 0.1883483861 | Q60: 4.808624212 | R60: 28.42587264 | S60: 14749.85746
A61: 80 | B61: 10 | C61: 22 | D61: 708.8936106 | E61: 730.8936106 | F61: 27.03655435 | G61: 42231.42338 | J61: 42 | K61: 48 | L61: 0.001462666838 | M61: 0.1755200205 | N61: =(K61-Linterp($L$26:$M$35,Q60+M61))/Linterp($J$26:$K$35,Q60+M61) -> 0.001259640331 | O61: 0.1511568398 | P61: 0.1633384302 | Q61: 4.971962642 | R61: 28.91588793 | S61: 15095.64491
A62: 82 | B62: 8 | C62: 18 | D62: 676.8205019 | E62: 694.8205019 | F62: 26.5817239 | G62: 40094.32668 | J62: 44 | K62: 46 | L62: 0.001264213101 | M62: 0.1517055722 | N62: =(K62-Linterp($L$26:$M$35,Q61+M62))/Linterp($J$26:$K$35,Q61+M62) -> 0.0007720571606 | O62: 0.09264685927 | P62: 0.1221762157 | Q62: 5.094138858 | R62: 32.95383202 | S62: 15258.9293
A63: 84 | B63: 6 | C63: 14 | D63: 641.6570541 | E63: 655.6570541 | F63: 26.08792867 | G63: 37774.14753 | J63: 46 | K63: 44 | L63: 0.0008549858069 | M63: 0.1025982968 | N63: =(K63-Linterp($L$26:$M$35,Q62+M63))/Linterp($J$26:$K$35,Q62+M63) -> 0.0004382613073 | O63: 0.05259135688 | P63: 0.07759482685 | Q63: 5.171733685 | R63: 36.21281475 | S63: 15344.59399
A64: 86 | B64: 4 | C64: 10 | D64: 603.4811968 | E64: 613.4811968 | F64: 25.31262609 | G64: 35290.11424 | J64: 48 | K64: 42 | L64: 0.0005074872139 | M64: 0.06089846567 | N64: =(K64-Linterp($L$26:$M$35,Q63+M64))/Linterp($J$26:$K$35,Q63+M64) -> 0.0002095436138 | O64: 0.02514523366 | P64: 0.04302184966 | Q64: 5.214755534 | R64: 38.01973243 | S64: 15392.09011
A65: 88 | B65: 2 | C65: 6 | D65: 562.8559446 | E65: 568.8559446 | F65: 24.44125187 | G65: 32664.88156 | J65: 50 | K65: 40 | L65: 0.0002585917531 | M65: 0.03103101037 | N65: =(K65-Linterp($L$26:$M$35,Q64+M65))/Linterp($J$26:$K$35,Q64+M65) -> 4.388369266e-05 | O65: 0.005266043119 | P65: 0.01814852674 | Q65: 5.232904061 | R65: 38.78197056 | S65: 15412.12608
A66: 90 | B66: 0 | C66: 2 | D66: 519.9734409 | E66: 521.9734409 | F66: 23.52580147 | G66: 29906.85836 | J66: 52 | K66: 38 | L66: 7.903059158e-05 | M66: 0.00948367099 | N66: =(K66-Linterp($L$26:$M$35,Q65+M66))/Linterp($J$26:$K$35,Q65+M66) -> -7.652957617e-05 | O66: -0.009183549141 | P66: 0.0001500609246 | Q66: 5.233054122 | R66: 38.78827312 | S66: 15412.29175
A67: 92 | B67: 0 | C67: 0 | D67: 474.9218379 | E67: 474.9218379 | F67: 22.60704915 | G67: 27138.88733 | J67: 54 | K67: 36 | L67: -5.114574326e-05 | M67: -0.006137489191 | N67: =(K67-Linterp($L$26:$M$35,Q66+M67))/Linterp($J$26:$K$35,Q66+M67) -> -0.0001642592547 | O67: -0.01971111057 | P67: -0.01292429988 | Q67: 5.220129822 | R67: 38.24545252 | S67: 15398.02332
A68: 94 | B68: 0 | C68: 0 | D68: 429.7077396 | E68: 429.7077396 | F68: 21.67367961 | G68: 24482.0436 | J68: 56 | K68: 34 | L68: -0.0001458273231 | M68: -0.01749927877 | N68: =(K68-Linterp($L$26:$M$35,Q67+M68))/Linterp($J$26:$K$35,Q67+M68) -> -0.0002282690912 | O68: -0.02739229095 | P68: -0.02244578486 | Q68: 5.197684037 | R68: 37.30272956 | S68: 15373.24318
A69: 96 | B69: 0 | C69: 0 | D69: 386.3603804 | E69: 386.3603804 | F69: 20.67229679 | G69: 21941.28502 | J69: 58 | K69: 32 | L69: -0.0002148362268 | M69: -0.02578034722 | N69: =(K69-Linterp($L$26:$M$35,Q68+M69))/Linterp($J$26:$K$35,Q68+M69) -> -0.0002750091246 | O69: -0.03300109495 | P69: -0.02939072108 | Q69: 5.168293316 | R69: 36.06831927 | S69: 15340.79582
A70: 98 | B70: 0 | C70: 0 | D70: 345.0157868 | E70: 345.0157868 | F70: 19.71718056 | G70: 19517.91638 | J70: 60 | K70: 30 | L70: -0.0002651961032 | M70: -0.03182353239 | N70: =(K70-Linterp($L$26:$M$35,Q69+M70))/Linterp($J$26:$K$35,Q69+M70) -> -0.00030914904 | O70: -0.0370978848 | P70: -0.03446070859 | Q70: 5.133832607 | R70: 34.62096951 | S70: 15302.7512
A71: 100 | B71: 0 | C71: 0 | D71: 305.5814257 | E71: 305.5814257 | F71: 18.8061933 | G71: 17206.51395 | J71: 62 | K71: 28 | L71: -0.0003019698518 | M71: -0.03623638222 | N71: =(K71-Linterp($L$26:$M$35,Q70+M71))/Linterp($J$26:$K$35,Q70+M71) -> -0.0003340841406 | O71: -0.04009009687 | P71: -0.03816323954 | Q71: 5.095669368 | R71: 33.01811345 | S71: 15260.61898
J72: 64 | K72: 26 | L72: -0.0003288276482 | M72: -0.03945931779 | N72: =(K72-Linterp($L$26:$M$35,Q71+M72))/Linterp($J$26:$K$35,Q71+M72) -> -0.0003522903603 | O72: -0.04227484323 | P72: -0.04086708051 | Q72: 5.054802287 | R72: 31.30169607 | S72: 15215.50173
J73: 66 | K73: 24 | L73: -0.0003484404369 | M73: -0.04181285243 | N73: =(K73-Linterp($L$26:$M$35,Q72+M73))/Linterp($J$26:$K$35,Q72+M73) -> -0.0003655766265 | O73: -0.04386919519 | P73: -0.04284102381 | Q73: 5.011961264 | R73: 29.50237307 | S73: 15168.20523
J74: 68 | K74: 22 | L74: -0.0003627570292 | M74: -0.0435308435 | N74: =(K74-Linterp($L$26:$M$35,Q73+M74))/Linterp($J$26:$K$35,Q73+M74) -> -0.0004576626948 | O74: -0.05491952338 | P74: -0.04922518344 | Q74: 4.96273608 | R74: 28.88820824 | S74: 15076.11228
J75: 70 | K75: 20 | L75: -0.0004568955253 | M75: -0.05482746304 | N75: =(K75-Linterp($L$26:$M$35,Q74+M75))/Linterp($J$26:$K$35,Q74+M75) -> -0.0005831350965 | O75: -0.06997621158 | P75: -0.06240183731 | Q75: 4.900334243 | R75: 28.70100273 | S75: 14944.00759
J76: 72 | K76: 18 | L76: -0.0005822402508 | M76: -0.0698688301 | N76: =(K76-Linterp($L$26:$M$35,Q75+M76))/Linterp($J$26:$K$35,Q75+M76) -> -0.0007090651987 | O76: -0.08508782384 | P76: -0.07747832697 | Q76: 4.822855916 | R76: 28.46856775 | S76: 14779.98597
J77: 74 | K77: 16 | L77: -0.0007082934832 | M77: -0.08499521799 | N77: =(K77-Linterp($L$26:$M$35,Q76+M77))/Linterp($J$26:$K$35,Q76+M77) -> -0.000836543791 | O77: -0.1003852549 | P77: -0.09269023645 | Q77: 4.730165679 | R77: 28.19049704 | S77: 14583.76074
J78: 76 | K78: 14 | L78: -0.0008358952984 | M78: -0.1003074358 | N78: =(K78-Linterp($L$26:$M$35,Q77+M78))/Linterp($J$26:$K$35,Q77+M78) -> -0.0009664726583 | O78: -0.115976719 | P78: -0.1081420774 | Q78: 4.622023602 | R78: 27.86607081 | S78: 14354.82397
J79: 78 | K79: 12 | L79: -0.0009659519921 | M79: -0.1159142391 | N79: =(K79-Linterp($L$26:$M$35,Q78+M79))/Linterp($J$26:$K$35,Q78+M79) -> -0.001099854793 | O79: -0.1319825752 | P79: -0.1239484071 | Q79: 4.498075195 | R79: 27.49422558 | S79: 14092.42519
J80: 80 | K80: 10 | L80: -0.001099471906 | M80: -0.1319366287 | N80: =(K80-Linterp($L$26:$M$35,Q79+M80))/Linterp($J$26:$K$35,Q79+M80) -> -0.001237839204 | O80: -0.1485407044 | P80: -0.1402386666 | Q80: 4.357836528 | R80: 27.07350958 | S80: 13795.53993
J81: 82 | K81: 8 | L81: -0.001237610827 | M81: -0.1485132993 | N81: =(K81-Linterp($L$26:$M$35,Q80+M81))/Linterp($J$26:$K$35,Q80+M81) -> -0.001381780284 | O81: -0.165813634 | P81: -0.1571634666 | Q81: 4.200673062 | R81: 26.60201918 | S81: 13462.82487
J82: 84 | K82: 6 | L82: -0.001381732241 | M82: -0.165807869 | N82: =(K82-Linterp($L$26:$M$35,Q81+M82))/Linterp($J$26:$K$35,Q81+M82) -> -0.001533319669 | O82: -0.1839983603 | P82: -0.1749031146 | Q82: 4.025769947 | R82: 26.07730984 | S82: 13092.55498
J83: 86 | K83: 4 | L83: -0.001533490589 | M83: -0.1840188706 | N83: =(K83-Linterp($L$26:$M$35,Q82+M83))/Linterp($J$26:$K$35,Q82+M83) -> -0.001679054535 | O83: -0.2014865442 | P83: -0.1927527074 | Q83: 3.83301724 | R83: 25.33206896 | S83: 12708.37603
J84: 88 | K84: 2 | L84: -0.001678583393 | M84: -0.2014300072 | N84: =(K84-Linterp($L$26:$M$35,Q83+M84))/Linterp($J$26:$K$35,Q83+M84) -> -0.001829810782 | O84: -0.2195772938 | P84: -0.2105036505 | Q84: 3.622513589 | R84: 24.49005436 | S84: 12292.84182
J85: 90 | K85: 0 | L85: -0.001829524424 | M85: -0.2195429309 | N85: =(K85-Linterp($L$26:$M$35,Q84+M85))/Linterp($J$26:$K$35,Q84+M85) -> -0.001990973831 | O85: -0.2389168597 | P85: -0.2292298953 | Q85: 3.393283694 | R85: 23.57313478 | S85: 11840.34201
J86: 92 | K86: 0 | L86: -0.001990916711 | M86: -0.2389100053 | N86: =(K86-Linterp($L$26:$M$35,Q85+M86))/Linterp($J$26:$K$35,Q85+M86) -> -0.001989447148 | O86: -0.2387336577 | P86: -0.2388218315 | Q86: 3.154461862 | R86: 22.61784745 | S86: 11368.90772
J87: 94 | K87: 0 | L87: -0.001989447712 | M87: -0.2387337255 | N87: =(K87-Linterp($L$26:$M$35,Q86+M87))/Linterp($J$26:$K$35,Q86+M87) -> -0.001985656442 | O87: -0.238278773 | P87: -0.2385062493 | Q87: 2.915955613 | R87: 21.66382245 | S87: 10910.11473
J88: 96 | K88: 0 | L88: -0.001985664037 | M88: -0.2382796844 | N88: =(K88-Linterp($L$26:$M$35,Q87+M88))/Linterp($J$26:$K$35,Q87+M88) -> -0.001977377363 | O88: -0.2372852835 | P88: -0.237782484 | Q88: 2.678173129 | R88: 20.71269252 | S88: 10474.735
J89: 98 | K89: 0 | L89: -0.001977395373 | M89: -0.2372874447 | N89: =(K89-Linterp($L$26:$M$35,Q88+M89))/Linterp($J$26:$K$35,Q88+M89) -> -0.001968429046 | O89: -0.2362114855 | P89: -0.2367494651 | Q89: 2.441423664 | R89: 19.76569466 | S89: 10041.24673
J90: 100 | K90: 0 | L90: -0.001968450252 | M90: -0.2362140303 | N90: =(K90-Linterp($L$26:$M$35,Q89+M90))/Linterp($J$26:$K$35,Q89+M90) -> -0.001958720999 | O90: -0.2350465198 | P90: -0.2356302751 | Q90: 2.205793389 | R90: 18.82317356 | S90: 9609.807695

Sheet Sheet2

Sheet Sheet3
